lending/lending_fUSD_20260204
["ID","MTS","AMOUNT","RATE_DAILY","PERIOD"]
[404477319,1770184245668,-791.0,0.00017452,2]
[404477321,1770184245678,-309.77574819,0.00017454,2]
[404477323,1770184245688,-463.40599282,0.00017454,2]
[404477325,1770184245699,-626.9967,0.00017454,2]
[404477327,1770184245708,-287.59995546,0.0001746,2]
[404477329,1770184245718,-200.0,0.00017462,2]
[404477330,1770184245729,-1386.0,0.00017465,2]
[404477331,1770184245740,-786.0,0.00017465,2]
[404477332,1770184245751,-527.0,0.00017465,2]
[404477333,1770184245760,-2353.0,0.00017465,2]
[404477334,1770184245771,-884.0,0.00017465,2]
[404477335,1770184245780,-825.0,0.00017465,2]
[404477336,1770184245791,-500.0,0.00017465,2]
[404477337,1770184245800,-1027.0,0.00017465,2]
[404477338,1770184245809,-270.0455652,0.00017484,2]
[404477339,1770184245818,-160.0,0.000175,7]
[404477340,1770184245827,-246.89022842,0.00017507,2]
[404477341,1770184245837,-791.0,0.00017507,2]
[404477342,1770184245847,-1386.0,0.0001752,2]
[404477343,1770184245856,-786.0,0.0001752,2]
[404477344,1770184245866,-527.0,0.0001752,2]
[404477345,1770184245875,-2353.0,0.0001752,2]
[404477346,1770184245885,-884.0,0.0001752,2]
[404477347,1770184245894,-825.0,0.0001752,2]
[404477348,1770184245903,-500.0,0.0001752,2]
[404477349,1770184245912,-1027.0,0.0001752,2]
[404477350,1770184245921,-1000.0,0.00017524,2]
[404477351,1770184245930,-1000.0,0.00017534,2]
[404477352,1770184245940,-280.03725112,0.00017539,2]
[404477353,1770184245950,-1321.0,0.00017552,2]
[404477354,1770184245962,-3531.78627076,0.00017553,2]
[404477355,1770184245973,-1366.0,0.00017554,2]
[404477356,1770184245984,-698.46348576,0.00017556,2]
[404477357,1770184245994,-791.0,0.00017562,2]
[404477359,1770184246003,-1000.0,0.00017565,2]
[404477360,1770184246014,-1386.0,0.00017575,2]
[404477361,1770184246024,-786.0,0.00017575,2]
[404477362,1770184246034,-527.0,0.00017575,2]
[404477363,1770184246046,-2353.0,0.00017575,2]
[404477364,1770184246055,-884.0,0.00017575,2]
[404477365,1770184246065,-825.0,0.00017575,2]
[404477366,1770184246075,-215.87262191,0.00017575,2]
[404477367,1770184246084,-1027.0,0.00017575,2]
[404477368,1770184246093,-290.39862941,0.00017594,2]
[404477369,1770184246102,-1321.0,0.00017612,2]
[404477370,1770184246112,-791.0,0.00017617,2]
[404477371,1770184246122,-1386.0,0.00017629,2]
[404477372,1770184246132,-786.0,0.00017629,2]
[404477373,1770184246142,-527.0,0.00017629,2]
[404477374,1770184246152,-2353.0,0.00017629,2]
[404477375,1770184246162,-884.0,0.00017629,2]
[404477376,1770184246171,-825.0,0.00017629,2]
[404477377,1770184246180,-1027.0,0.00017629,2]
[404477378,1770184246189,-168.0,0.0001763,2]
[404477379,1770184246200,-1321.0,0.00017639,2]
[404477380,1770184246209,-1321.0,0.00017647,2]
[404477381,1770184246219,-181.08010149,0.00017647,2]
[404477382,1770184246228,-301.1433787,0.00017649,2]
[404477383,1770184246237,-1321.0,0.00017665,2]
[404477384,1770184246246,-791.0,0.00017671,2]
[404477385,1770184246256,-1321.0,0.00017681,2]
[404477386,1770184246266,-1386.0,0.00017684,2]
[404477387,1770184246275,-786.0,0.00017684,2]
[404477388,1770184246285,-527.0,0.00017684,2]
[404477389,1770184246467,-2353.0,0.00017684,2]
[404477390,1770184246476,-884.0,0.00017684,2]
[404477391,1770184246485,-825.0,0.00017684,2]
[404477392,1770184246494,-1027.0,0.00017684,2]
[404477393,1770184246504,-162.705,0.00017688,2]
[404477394,1770184246513,-1366.0,0.00017693,2]
[404477395,1770184246522,-10000.0,0.000177,2]
[404477396,1770184246532,-771.52,0.00017726,2]
[404477397,1770184246541,-652.40818404,0.00017726,2]
[404477398,1770184246551,-786.0,0.00017739,2]
[404477399,1770184246560,-1386.0,0.00017739,2]
[404477400,1770184246569,-527.0,0.00017739,2]
[404477401,1770184246578,-884.0,0.00017739,2]
[404477402,1770184246587,-2353.0,0.00017739,2]
[404477403,1770184246596,-825.0,0.00017739,2]
[404477404,1770184246606,-1027.0,0.00017739,2]
[404477405,1770184246615,-152.19,0.00017774,2]
[404477406,1770184246627,-786.0,0.00017794,2]
[404477407,1770184246636,-1386.0,0.00017794,2]
[404477408,1770184246645,-527.0,0.00017794,2]
[404477409,1770184246655,-884.0,0.00017794,2]
[404477410,1770184246664,-2353.0,0.00017794,2]
[404477411,1770184246674,-825.0,0.00017794,2]
[404477412,1770184246683,-1027.0,0.00017794,2]
[404477413,1770184246693,-500.0,0.00017808,2]
[404477414,1770184246702,-1000.0,0.00017808,2]
[404477415,1770184246711,-15565.73514495,0.0001783,2]
[404477416,1770184246720,-786.0,0.00017848,2]
[404477417,1770184246729,-1386.0,0.00017848,2]
[404477418,1770184246739,-527.0,0.00017848,2]
[404477419,1770184246748,-884.0,0.00017848,2]
[404477420,1770184246757,-2353.0,0.00017848,2]
[404477421,1770184246766,-825.0,0.00017848,2]
[404477422,1770184246775,-1027.0,0.00017848,2]
[404477423,1770184246784,-454.0,0.00017855,2]
[404477424,1770184246795,-200.0,0.00017856,2]
[404477425,1770184246804,-1321.0,0.00017859,2]
[404477426,1770184246813,-500.0,0.00017863,2]
[404477427,1770184246823,-444.0,0.00017876,2]
[404477428,1770184246833,-409.9369716,0.00017881,2]
[404477429,1770184246842,-3500.0,0.00017888,2]
[404477430,1770184246851,-300.0,0.0001789,2]
[404477431,1770184246862,-300.0,0.0001789,2]
[404477432,1770184246871,-25000.0,0.00017891,3]
[404477433,1770184246880,-200.0,0.00017892,2]
[404477434,1770184246889,-414.0,0.00017896,2]
[404477435,1770184246898,-1178.6353464,0.00017899,5]
[404477436,1770184246907,-1000.0,0.000179,2]
[404477437,1770184246916,-10142.1213,0.000179,2]
[404477438,1770184246927,-500.0,0.000179,2]
[404477439,1770184246936,-25000.0,0.000179,3]
[404477440,1770184246946,-160.0,0.000179,3]
[404477441,1770184246956,-333.34132533,0.000179,2]
[404477442,1770184246969,-3118.48826527,0.000179,2]
[404477443,1770184246979,-698.46348576,0.000179,2]
[404477444,1770184246989,-16152.7997049,0.000179,3]
[404477445,1770184246999,-3531.78627076,0.000179,2]
[404477446,1770184247009,-239.86447206,0.000179,2]
[404477447,1770184247019,-7460.83859256,0.000179,2]
[404477448,1770184247028,-3212.11087912,0.000179,2]
[404477449,1770184247039,-3187.76596997,0.000179,2]
[404477450,1770184247049,-9389.0,0.000179,2]
[404477451,1770184247059,-487.0,0.000179,2]
[404477452,1770184247068,-529.11,0.000179,2]
[404477453,1770184247077,-786.30370986,0.00017903,2]
[404477454,1770184247088,-1409.41748216,0.00017903,2]
[404477455,1770184247098,-530.46949041,0.00017903,2]
[404477456,1770184247117,-884.47692943,0.00017903,2]
[404477457,1770184247128,-2361.0,0.00017903,2]
[404477458,1770184247138,-848.0771888,0.00017903,2]
[404477459,1770184247148,-1032.53646918,0.00017903,2]
[404477460,1770184247158,-500.0,0.00017918,2]
[404477461,1770184247168,-159.58944175,0.00017941,2]
[404477462,1770184247179,-168.0,0.0001797,2]
[404477463,1770184247189,-702.05888432,0.0001797,2]
[404477464,1770184247201,-500.0,0.00017972,2]
[404477465,1770184247211,-500.0,0.00017973,2]
[404477466,1770184247220,-500.0,0.00017973,2]
[404477467,1770184247230,-500.0,0.00017973,2]
[404477468,1770184247241,-500.0,0.00017973,2]
[404477469,1770184247251,-151.18993016,0.00017973,2]
[404477470,1770184247260,-500.96948842,0.00017973,2]
[404477471,1770184247269,-160.61789884,0.00017973,2]
[404477472,1770184247279,-500.68854041,0.00017973,2]
[404477473,1770184247289,-501.02089422,0.00017973,2]
[404477474,1770184247299,-500.0,0.00017973,2]
[404477475,1770184247308,-500.0,0.00017973,2]
[404477476,1770184247317,-500.0,0.00017973,2]
[404477477,1770184247326,-336.59163653,0.00017973,2]
[404477478,1770184247335,-500.0,0.00017973,2]
[404477479,1770184247344,-500.0,0.00017973,2]
[404477480,1770184247354,-500.0,0.00017973,2]
[404477481,1770184247364,-496.6693993,0.00017973,2]
[404477482,1770184247373,-500.0,0.00017973,2]
[404477483,1770184247383,-465.90748908,0.00017973,2]
[404477484,1770184247392,-502.60776792,0.00017982,2]
[404477485,1770184247402,-390.634617,0.00017984,2]
[404477486,1770184247412,-168.0,0.0001799,2]
[404477487,1770184247422,-409.9369716,0.0001799,2]
[404477488,1770184247431,-409.9369716,0.0001799,2]
[404477489,1770184247440,-200.0,0.00017993,2]
[404477490,1770184247450,-151.0,0.00017997,2]
[404477491,1770184247460,-150.0,0.00017999,2]
[404477492,1770184247470,-252.00977238,0.00017999,2]
[404477493,1770184247483,-300.0,0.00017999,2]
[404477494,1770184247493,-396.76821578,0.00017999,2]
[404477495,1770184247503,-300.0,0.00017999,2]
[404477496,1770184247512,-300.0,0.00017999,2]
[404477497,1770184247522,-670.68068141,0.00017999,2]
[404477498,1770184247532,-300.0,0.00017999,2]
[404477499,1770184247541,-666.0,0.00017999,2]
[404477500,1770184247550,-300.0,0.00017999,2]
[404477501,1770184247561,-1000.0,0.00018,2]
[404477502,1770184247570,-1000.0,0.00018,2]
[404477503,1770184247580,-979.90774973,0.00018,2]
[404477504,1770184247590,-4310069.35362601,0.00018,2]
[404477505,1770184248020,-572.0,0.00015038,2]
[404477506,1770184248030,-196.71294345,0.00018,2]
[404477507,1770184249252,-298.0,0.00013716,2]
[404477508,1770184249263,-525.1934376,0.00013716,2]
[404477509,1770184249272,-342.04380585,0.00013716,2]
[404477510,1770184249283,-481.14963175,0.00013716,2]
[404477511,1770184249294,-823.1934376,0.00013716,2]
[404477512,1770184249303,-823.1934376,0.00013716,2]
[404477513,1770184249312,-823.1934376,0.00013716,2]
[404477514,1770184249321,-823.1934376,0.00013716,2]
[404477515,1770184249330,-823.1934376,0.00013716,2]
[404477516,1770184249339,-823.1934376,0.00013716,2]
[404477517,1770184249349,-823.1934376,0.00013716,2]
[404477518,1770184249358,-544.22808955,0.00013716,2]
[404477519,1770184249485,-271.46602208,0.00013716,2]
[404477520,1770184249497,-7.49932597,0.00013716,2]
[404477521,1770184249506,-409.12729288,0.00013716,2]
[404477522,1770184249517,-411.7493109,0.00013716,2]
[404477523,1770184249691,-2.31683382,0.00013716,2]
[404477524,1770184249700,-823.1934376,0.00013716,2]
[404477525,1770184249709,-823.1934376,0.00013716,2]
[404477526,1770184249719,-823.1934376,0.00013716,2]
[404477527,1770184249728,-823.1934376,0.00013716,2]
[404477528,1770184249737,-823.1934376,0.00013716,2]
[404477529,1770184249746,-823.1934376,0.00013716,2]
[404477530,1770184249755,-823.1934376,0.00013716,2]
[404477531,1770184249764,-823.1934376,0.00013716,2]
[404477532,1770184249774,-823.1934376,0.00013716,2]
[404477533,1770184249782,-823.1934376,0.00013716,2]
[404477534,1770184249792,-823.1934376,0.00013716,2]
[404477535,1770184249802,-823.1934376,0.00013716,2]
[404477536,1770184249811,-823.1934376,0.00013716,2]
[404477537,1770184249820,-823.1934376,0.00013716,2]
[404477538,1770184249829,-823.1934376,0.00013716,2]
[404477539,1770184249838,-823.1934376,0.00013716,2]
[404477540,1770184249847,-823.1934376,0.00013716,2]
[404477541,1770184249857,-823.1934376,0.00013716,2]
[404477542,1770184249868,-823.1934376,0.00013716,2]
[404477543,1770184249878,-823.1934376,0.00013716,2]
[404477544,1770184249887,-823.1934376,0.00013716,2]
[404477545,1770184249896,-823.1934376,0.00013716,2]
[404477546,1770184249906,-823.1934376,0.00013716,2]
[404477547,1770184249916,-823.1934376,0.00013716,2]
[404477548,1770184249926,-823.1934376,0.00013716,2]
[404477549,1770184249935,-823.1934376,0.00013716,2]
[404477550,1770184249944,-823.1934376,0.00013716,2]
[404477551,1770184249953,-823.1934376,0.00013716,2]
[404477552,1770184249962,-823.1934376,0.00013716,2]
[404477553,1770184249975,-823.1934376,0.00013716,2]
[404477554,1770184249984,-823.1934376,0.00013716,2]
[404477555,1770184249993,-631.0,0.0001471,2]
[404477556,1770184250003,-631.0,0.00014764,2]
[404477557,1770184250014,-631.0,0.00014819,2]
[404477558,1770184250024,-631.0,0.00014874,2]
[404477559,1770184250034,-631.0,0.00014929,2]
[404477560,1770184250045,-2206.0,0.00014984,2]
[404477561,1770184250055,-631.0,0.00014984,2]
[404477562,1770184250064,-2206.0,0.00015038,2]
[404477563,1770184250074,-631.0,0.00015038,2]
[404477564,1770184250086,-572.0,0.00015093,2]
[404477565,1770184250096,-2206.0,0.00015093,2]
[404477566,1770184250107,-631.0,0.00015093,2]
[404477567,1770184250118,-572.0,0.00015148,2]
[404477568,1770184250128,-2206.0,0.00015148,2]
[404477569,1770184250139,-631.0,0.00015148,2]
[404477570,1770184250149,-572.0,0.00015203,2]
[404477571,1770184250160,-2206.0,0.00015203,2]
[404477572,1770184250171,-631.0,0.00015203,2]
[404477573,1770184250180,-572.0,0.00015258,2]
[404477574,1770184250190,-2206.0,0.00015258,2]
[404477575,1770184250200,-631.0,0.00015258,2]
[404477576,1770184250210,-572.0,0.00015312,2]
[404477577,1770184250219,-2206.0,0.00015312,2]
[404477578,1770184250228,-631.0,0.00015312,2]
[404477579,1770184250237,-572.0,0.00015367,2]
[404477580,1770184250246,-2206.0,0.00015367,2]
[404477581,1770184250255,-631.0,0.00015367,2]
[404477582,1770184250264,-236.24,0.00015636,2]
[404477583,1770184250274,-73345.33200815,0.00018,2]
[404477584,1770184250284,-151.632,0.00018,2]
[404477585,1770184250293,-55580.80355774,0.00018,2]
[404477586,1770184250312,-691223.67017642,0.00018,2]
[404477587,1770184250331,-572.0,0.00015422,2]
[404477588,1770184250341,-6972.96376286,0.00018,2]
[404477625,1770185431653,-182.0,0.000127,2]
[404477627,1770185431663,-3824.35,0.00012731,2]
[404477629,1770185431673,-151.0,0.00013595,2]
[404477631,1770185431682,-151.0,0.00013595,2]
[404477633,1770185431692,-151.0,0.00013595,2]
[404477634,1770185431702,-99.53508967,0.00013595,2]
[404477635,1770185431777,-51.46491033,0.00013595,2]
[404477636,1770185431787,-151.0,0.00013595,2]
[404477637,1770185431796,-151.0,0.00013595,2]
[404477638,1770185431804,-151.0,0.00013595,2]
[404477639,1770185431814,-151.0,0.00013595,2]
[404477640,1770185431823,-151.0,0.00013595,2]
[404477641,1770185431832,-151.0,0.00013595,2]
[404477642,1770185431842,-151.0,0.00013595,2]
[404477643,1770185431851,-2983.48295782,0.00013603,2]
[404477644,1770185432003,-302.04407022,0.00013603,2]
[404477679,1770185440197,-7507.89365902,0.00013603,2]
[404477680,1770185440207,-1178.6353464,0.00013611,3]
[404477681,1770185440219,-7013.81051169,0.00013673,2]
[404477682,1770185440229,-600.0,0.0001397,2]
[404477683,1770185440240,-600.0,0.0001397,2]
[404477684,1770185440250,-600.0,0.0001397,2]
[404477685,1770185440260,-600.0,0.0001397,2]
[404477686,1770185440270,-600.0,0.0001397,2]
[404477687,1770185440280,-500.0,0.000146,2]
[404477688,1770185440290,-500.0,0.00014676,2]
[404477689,1770185440299,-500.0,0.00014925,2]
[404477690,1770185440310,-3240.0,0.00014982,2]
[404477691,1770185440321,-250.0,0.00015,2]
[404477692,1770185440331,-188.99,0.00015038,2]
[404477693,1770185440345,-1000.0,0.00015043,2]
[404477694,1770185440358,-1909.98,0.00015121,2]
[404477695,1770185440369,-1000.0,0.00015148,2]
[404477696,1770185440380,-387.64529083,0.00015215,7]
[404477697,1770185440391,-150.0,0.00015215,7]
[404477698,1770185440402,-1500.0,0.00015696,2]
[404477699,1770185440412,-288.19,0.00015918,2]
[404477700,1770185440423,-250.0,0.00016022,2]
[404477702,1770185440436,-228.0,0.00016081,2]
[404477704,1770185440446,-1000.0,0.00016082,2]
[404477705,1770185440457,-1300.0,0.00016082,2]
[404477706,1770185440467,-500.0,0.00016244,2]
[404477707,1770185440477,-2000.0,0.00016244,2]
[404477708,1770185440486,-500.0,0.00016356,2]
[404477709,1770185440496,-500.0,0.00016479,2]
[404477710,1770185440505,-500.0,0.00016479,2]
[404477712,1770185440515,-500.0,0.00016479,2]
[404477714,1770185440525,-166.8633284,0.00016479,2]
[404477716,1770185440534,-200.0,0.00016479,2]
[404477717,1770185440544,-500.0,0.00016479,2]
[404477718,1770185440554,-500.0,0.00016479,2]
[404477719,1770185440564,-150.0,0.00016479,2]
[404477720,1770185440573,-150.0,0.00016479,2]
[404477721,1770185440584,-500.0,0.00016479,2]
[404477722,1770185440595,-297.74681301,0.00016479,2]
[404477723,1770185440605,-500.0,0.00016479,2]
[404477724,1770185440615,-500.0,0.00016479,2]
[404477725,1770185440626,-1470.0,0.00016479,2]
[404477726,1770185440636,-150.0,0.00016479,2]
[404477727,1770185440645,-500.0,0.00016479,2]
[404477728,1770185440655,-687.0,0.00016479,2]
[404477729,1770185440665,-500.0,0.00016479,2]
[404477730,1770185440675,-461.0,0.00016479,2]
[404477731,1770185440686,-500.0,0.00016479,2]
[404477732,1770185440696,-773.0,0.00016479,2]
[404477733,1770185440706,-2627.0,0.00016479,2]
[404477734,1770185440715,-500.0,0.00016479,2]
[404477735,1770185440725,-500.0,0.00016479,2]
[404477736,1770185440734,-150.0,0.00016479,2]
[404477737,1770185440748,-500.0,0.00016479,2]
[404477738,1770185440758,-941.0,0.00016479,2]
[404477739,1770185440767,-150.0,0.00016479,2]
[404477740,1770185440777,-1213.0,0.00016479,2]
[404477741,1770185440786,-500.0,0.00016479,2]
[404477742,1770185440795,-500.0,0.00016479,2]
[404477743,1770185440805,-150.0,0.00016479,2]
[404477744,1770185440815,-500.0,0.00016479,2]
[404477745,1770185440824,-587.0,0.00016479,2]
[404477746,1770185440833,-500.0,0.00016479,2]
[404477747,1770185440843,-741.0,0.00016479,2]
[404477748,1770185440852,-150.0,0.00016479,2]
[404477749,1770185440861,-857.0,0.00016479,2]
[404477750,1770185440871,-1412.71450834,0.00016488,2]
[404477751,1770185440879,-500.0,0.00016534,2]
[404477752,1770185440888,-500.0,0.00016534,2]
[404477753,1770185440897,-500.0,0.00016534,2]
[404477754,1770185440906,-200.0,0.00016534,2]
[404477755,1770185440916,-500.0,0.00016534,2]
[404477756,1770185440927,-150.0,0.00016534,2]
[404477757,1770185440937,-150.0,0.00016534,2]
[404477758,1770185440948,-500.0,0.00016534,2]
[404477759,1770185440958,-500.0,0.00016534,2]
[404477760,1770185440967,-500.0,0.00016534,2]
[404477761,1770185440977,-1470.0,0.00016534,2]
[404477762,1770185440986,-150.0,0.00016534,2]
[404477763,1770185440995,-500.0,0.00016534,2]
[404477764,1770185441005,-687.0,0.00016534,2]
[404477765,1770185441014,-500.0,0.00016534,2]
[404477766,1770185441023,-461.0,0.00016534,2]
[404477767,1770185441032,-500.0,0.00016534,2]
[404477768,1770185441042,-773.0,0.00016534,2]
[404477769,1770185441052,-2627.0,0.00016534,2]
[404477770,1770185441061,-500.0,0.00016534,2]
[404477771,1770185441070,-500.0,0.00016534,2]
[404477772,1770185441079,-150.0,0.00016534,2]
[404477773,1770185441088,-500.0,0.00016534,2]
[404477774,1770185441097,-941.0,0.00016534,2]
[404477775,1770185441384,-150.0,0.00016534,2]
[404477776,1770185441397,-1213.0,0.00016534,2]
[404477777,1770185441406,-500.0,0.00016534,2]
[404477778,1770185441417,-500.0,0.00016534,2]
[404477779,1770185441430,-500.0,0.00016534,2]
[404477780,1770185441439,-587.0,0.00016534,2]
[404477781,1770185441448,-500.0,0.00016534,2]
[404477782,1770185441457,-741.0,0.00016534,2]
[404477783,1770185441466,-857.0,0.00016534,2]
[404477784,1770185441476,-500.0,0.00016589,2]
[404477785,1770185441485,-500.0,0.00016589,2]
[404477786,1770185441494,-500.0,0.00016589,2]
[404477787,1770185441503,-200.0,0.00016589,2]
[404477788,1770185441512,-500.0,0.00016589,2]
[404477789,1770185441521,-150.0,0.00016589,2]
[404477790,1770185441531,-150.0,0.00016589,2]
[404477791,1770185441540,-500.0,0.00016589,2]
[404477792,1770185441551,-613.72923299,0.00016589,2]
[404477793,1770185441561,-500.0,0.00016589,2]
[404477794,1770185441571,-1470.0,0.00016589,2]
[404477795,1770185441580,-215.59932807,0.00016589,2]
[404477796,1770185441590,-500.0,0.00016589,2]
[404477797,1770185441599,-687.0,0.00016589,2]
[404477798,1770185441609,-500.0,0.00016589,2]
[404477799,1770185441618,-461.0,0.00016589,2]
[404477800,1770185441627,-500.0,0.00016589,2]
[404477801,1770185441637,-773.0,0.00016589,2]
[404477802,1770185441647,-2627.0,0.00016589,2]
[404477803,1770185441656,-500.0,0.00016589,2]
[404477804,1770185441665,-500.0,0.00016589,2]
[404477805,1770185441674,-150.0,0.00016589,2]
[404477806,1770185441685,-500.0,0.00016589,2]
[404477807,1770185441694,-200.69925499,0.00016589,2]
[404477808,1770185441703,-941.0,0.00016589,2]
[404477809,1770185441712,-1213.0,0.00016589,2]
[404477810,1770185441721,-500.0,0.00016589,2]
[404477811,1770185441731,-500.0,0.00016589,2]
[404477812,1770185441740,-500.0,0.00016589,2]
[404477813,1770185441749,-587.0,0.00016589,2]
[404477814,1770185441759,-500.0,0.00016589,2]
[404477815,1770185441768,-741.0,0.00016589,2]
[404477816,1770185441777,-857.0,0.00016589,2]
[404477817,1770185441786,-10793.42068706,0.00016633,2]
[404477818,1770185441795,-500.0,0.00016641,2]
[404477819,1770185441804,-500.0,0.00016641,2]
[404477820,1770185441816,-500.0,0.00016641,2]
[404477821,1770185441825,-500.0,0.00016641,2]
[404477822,1770185441834,-500.0,0.00016641,2]
[404477823,1770185441843,-463.84882155,0.00016641,2]
[404477824,1770185441852,-500.0,0.00016641,2]
[404477825,1770185441862,-500.0,0.00016641,2]
[404477826,1770185441871,-500.0,0.00016641,2]
[404477827,1770185441880,-500.0,0.00016641,2]
[404477828,1770185441889,-500.0,0.00016641,2]
[404477829,1770185441899,-500.0,0.00016641,2]
[404477830,1770185441909,-500.0,0.00016641,2]
[404477831,1770185441919,-500.0,0.00016641,2]
[404477832,1770185441929,-500.0,0.00016641,2]
[404477833,1770185441938,-500.0,0.00016641,2]
[404477834,1770185441948,-500.0,0.00016641,2]
[404477835,1770185441957,-500.0,0.00016641,2]
[404477836,1770185441966,-500.0,0.00016641,2]
[404477837,1770185441975,-500.0,0.00016641,2]
[404477838,1770185441984,-500.0,0.00016641,2]
[404477839,1770185441994,-500.0,0.00016641,2]
[404477840,1770185442003,-500.0,0.00016641,2]
[404477841,1770185442012,-187.38563793,0.00016643,2]
[404477842,1770185442021,-505.46772774,0.00016643,2]
[404477843,1770185442031,-500.0,0.00016643,2]
[404477844,1770185442039,-200.0,0.00016643,2]
[404477845,1770185442049,-500.0,0.00016643,2]
[404477846,1770185442058,-150.0,0.00016643,2]
[404477847,1770185442068,-151.68079732,0.00016643,2]
[404477848,1770185442077,-500.0,0.00016643,2]
[404477849,1770185442086,-500.0,0.00016643,2]
[404477850,1770185442095,-1470.0,0.00016643,2]
[404477851,1770185442105,-500.0,0.00016643,2]
[404477852,1770185442115,-687.0,0.00016643,2]
[404477853,1770185442125,-500.0,0.00016643,2]
[404477854,1770185442135,-461.0,0.00016643,2]
[404477855,1770185442144,-500.0,0.00016643,2]
[404477856,1770185442153,-773.0,0.00016643,2]
[404477857,1770185442163,-2627.0,0.00016643,2]
[404477858,1770185442172,-247.64699965,0.00016643,2]
[404477859,1770185442181,-500.0,0.00016643,2]
[404477860,1770185442190,-158.89235453,0.00016643,2]
[404477861,1770185442200,-500.0,0.00016643,2]
[404477862,1770185442210,-941.0,0.00016643,2]
[404477863,1770185442219,-1213.0,0.00016643,2]
[404477864,1770185442230,-500.0,0.00016643,2]
[404477865,1770185442239,-500.0,0.00016643,2]
[404477866,1770185442249,-500.0,0.00016643,2]
[404477867,1770185442258,-500.0,0.00016643,2]
[404477868,1770185442268,-741.0,0.00016643,2]
[404477869,1770185442277,-587.0,0.00016643,2]
[404477870,1770185442286,-857.0,0.00016643,2]
[404477871,1770185442296,-1412.7145083,0.00016645,2]
[404477872,1770185442306,-2500.0,0.00016653,2]
[404477873,1770185442316,-500.0,0.00016698,2]
[404477874,1770185442326,-200.0,0.00016698,2]
[404477875,1770185442335,-500.0,0.00016698,2]
[404477876,1770185442345,-202.64784288,0.00016698,2]
[404477877,1770185442356,-500.0,0.00016698,2]
[404477878,1770185442367,-550.58242297,0.00016698,2]
[404477879,1770185442376,-1470.0,0.00016698,2]
[404477880,1770185442386,-500.0,0.00016698,2]
[404477881,1770185442395,-687.0,0.00016698,2]
[404477882,1770185442405,-500.0,0.00016698,2]
[404477883,1770185442415,-461.0,0.00016698,2]
[404477884,1770185442424,-200.53013078,0.00016698,2]
[404477885,1770185442436,-773.0,0.00016698,2]
[404477886,1770185442446,-2627.0,0.00016698,2]
[404477887,1770185442455,-500.0,0.00016698,2]
[404477888,1770185442464,-500.0,0.00016698,2]
[404477889,1770185442474,-941.0,0.00016698,2]
[404477890,1770185442483,-1213.0,0.00016698,2]
[404477891,1770185442494,-500.0,0.00016698,2]
[404477892,1770185442504,-500.0,0.00016698,2]
[404477893,1770185442513,-500.0,0.00016698,2]
[404477894,1770185442522,-500.0,0.00016698,2]
[404477895,1770185442531,-741.0,0.00016698,2]
[404477896,1770185442540,-587.0,0.00016698,2]
[404477897,1770185442549,-857.0,0.00016698,2]
[404477898,1770185442559,-507.32886496,0.00016753,2]
[404477899,1770185442567,-200.0,0.00016753,2]
[404477900,1770185442576,-500.0,0.00016753,2]
[404477901,1770185442585,-500.0,0.00016753,2]
[404477902,1770185442601,-1470.0,0.00016753,2]
[404477903,1770185442622,-500.0,0.00016753,2]